bitfinex/quotes_ETHUSD_20230703
["timestamp","ask_amount","ask_price","bid_price","bid_amount"]
[1688379566836,12.75852816,1960.9,1960.4,16.9762112]
[1688379567900,12.75852816,1960.9,1960.4,18.2752112]
[1688379568300,12.75852816,1960.9,1960.5,1.3]
[1688379568501,12.75852816,1960.9,1960.5,6.40063]
[1688379568923,2.54952,1961.2,1960.5,12.75172]
[1688379568924,5.09903,1961.2,1960.5,12.75172]
[1688379569132,37.64986,1961.3,1960.8,2.54997]
[1688379569315,7.08986,1961.3,1960.8,12.74983]
[1688379569764,5.1583754,1961.4,1960.8,12.74983]
[1688379570070,5.1583754,1961.4,1960.6,11.26059171]
[1688379570071,5.1582754,1961.4,1961.1,5.09917]
[1688379570859,10.2567154,1961.4,1961.1,5.09917]
[1688379573049,10.2372193,1961.4,1961.1,5.09917]
[1688379574621,0.0403393,1961.4,1961.1,6.39917]
[1688379574806,0.0403393,1961.4,1961.1,14.04792]
[1688379575122,0.0403393,1961.4,1961.2,1.404792]
[1688379575123,5.1387493,1961.4,1961.2,1.404792]
[1688379575462,5.1387493,1961.4,1961.2,6.503582]
[1688379579336,5.1387493,1961.4,1961.2,12.903492]
[1688379579337,0.0403393,1961.4,1961.2,12.903492]
[1688379580025,0.0403393,1961.4,1961.2,11.602492]
[1688379580026,5.1387293,1961.4,1961.2,11.602492]
[1688379580406,5.1387293,1961.4,1961.2,6.503582]
[1688379581556,10.2371193,1961.4,1961.2,6.503582]
[1688379583427,5.1387293,1961.4,1961.2,11.602492]
[1688379586374,5.1387293,1961.4,1961.2,10.1977]
[1688379588860,0.0403393,1961.4,1961.2,10.1977]
[1688379594196,0.0403393,1961.4,1961.2,14.04715]
[1688379601225,0.0403393,1961.4,1961.3,17.05062]
[1688379603390,0.0403393,1961.4,1961.3,15.74662]
[1688379603616,0.0403393,1961.4,1961.3,18.412177]
[1688379604288,0.0403393,1961.4,1961.3,19.711177]
[1688379610814,0.0403393,1961.4,1961.3,20.12697646]
[1688379614423,0.0403393,1961.4,1961.3,18.82797646]
[1688379620663,0.0403393,1961.4,1961.3,20.13197646]
[1688379625383,0.0403393,1961.4,1961.3,20.63197646]
[1688379625599,0.0403393,1961.4,1961.3,25.73062646]
[1688379625894,0.0403393,1961.4,1961.3,33.65441462]
[1688379626098,2.41323326,1961.5,1961.3,35.8497208]
[1688379626405,2.41323326,1961.5,1961.4,17.63194208]
[1688379626695,2.41323326,1961.5,1961.4,25.99694208]
[1688379626999,2.41323326,1961.5,1961.4,24.69594208]
[1688379627304,2.41323326,1961.5,1961.4,28.21214453]
[1688379627496,0.25,1962.0,1961.4,30.77093269]
[1688379627659,0.25,1962.0,1961.5,14.48088143]
[1688379628003,0.25,1962.0,1961.6,20.39109]
[1688379628210,0.25,1962.0,1961.8,12.74337]
[1688379638271,0.1,1962.2,1962.0,0.5]
[1688379638390,0.1,1962.2,1962.1,28.31010816]
[1688379638715,0.1587869,1962.3,1962.1,28.79010816]
[1688379638716,0.0011739,1962.3,1962.1,28.79010816]
[1688379638890,0.0011739,1962.3,1962.2,21.1058]
[1688379639227,0.0011739,1962.3,1962.2,24.14458816]
[1688379639427,0.0011739,1962.3,1962.2,21.5858]
[1688379639588,0.0011739,1962.3,1962.1,5.09648]
[1688379639788,0.0011739,1962.3,1962.2,8.17484]
[1688379640001,0.0011739,1962.3,1961.9,5.09709]
[1688379640002,15.30014206,1962.3,1961.9,5.09709]
[1688379640322,15.30014206,1962.3,1961.9,10.19418]
[1688379640323,0.01652336,1962.2,1961.9,10.19418]
[1688379640566,6.40389336,1962.2,1961.9,10.19418]
[1688379640942,11.50026336,1962.2,1961.9,5.09709]
[1688379643536,11.50026336,1962.2,1961.9,10.19418]
[1688379648574,11.50026336,1962.2,1961.6,3.40707348]
[1688379648575,14.05905152,1962.2,1961.6,3.40707348]
[1688379648803,3.86278816,1962.1,1961.5,8.09794]
[1688379649005,11.4979,1962.0,1961.6,10.60883109]
[1688379649308,6.39424,1961.9,1961.6,5.09782]
[1688379649613,6.39424,1961.9,1961.6,10.19569]
[1688379649614,14.05026816,1961.9,1961.6,10.19569]
[1688379649799,1.291,1961.8,1961.6,10.19569]
[1688379650374,6.38837,1961.8,1961.6,10.19569]
[1688379651798,6.39997,1962.0,1961.6,12.74462]
[1688379651999,11.49694,1962.0,1961.6,12.74462]
[1688379652393,11.49694,1962.0,1961.6,10.19569]
[1688379653627,1.304,1961.8,1961.6,5.09782]
[1688379653830,11.49897,1961.8,1961.6,5.09782]
[1688379654134,6.40144,1961.8,1961.6,5.09782]
[1688379654453,14.05766816,1961.8,1961.1,1.32920125]
[1688379654742,1.304,1961.5,1961.2,5.09882]
[1688379654945,6.40222,1961.5,1961.2,10.19773]
[1688379655243,11.50044,1961.5,1961.1,5.09913]
[1688379655391,11.50044,1961.5,1961.1,10.19826]
[1688379656413,11.50044,1961.5,1961.1,12.74784]
[1688379658330,10.19644,1961.5,1961.1,14.022624]
[1688379661666,10.19644,1961.5,1961.1,11.473044]
[1688379663932,10.19644,1961.5,1961.1,11.88270641]
[1688379665061,10.19644,1961.5,1961.1,6.78357641]
[1688379665259,10.19644,1961.5,1961.1,11.88274641]
[1688379666766,12.7455,1961.5,1961.1,0.40966241]
[1688379666969,16.60828816,1961.5,1961.1,0.40966241]
[1688379667174,16.60828816,1961.5,1961.0,5.09918]
[1688379667335,1.304,1961.4,1961.0,5.09918]
[1688379667531,5.0987,1961.3,1961.0,10.19848]
[1688379668565,6.40249,1961.4,1961.0,10.19848]
[1688379668764,5.09868,1961.3,1961.0,10.19848]
[1688379669837,5.09869,1961.3,1961.0,12.74819]
[1688379670135,6.40249,1961.4,1961.0,12.74819]
[1688379670335,5.09866,1961.3,1961.0,12.74819]
[1688379670896,5.09871,1961.3,1961.0,12.74819]
[1688379672785,5.09871,1961.3,1961.0,10.19848]
[1688379676786,5.09871,1961.3,1961.0,5.09918]
[1688379677580,10.19742,1961.3,1961.0,5.09918]
[1688379679184,5.09871,1961.3,1961.0,5.09918]
[1688379680412,5.09871,1961.3,1961.0,10.19861]
[1688379680413,10.19736,1961.3,1961.0,10.19861]
[1688379684191,5.09831,1961.5,1961.0,14.06382509]
[1688379684518,5.09831,1961.5,1961.0,15.74522509]
[1688379685840,10.19656,1961.5,1961.0,15.74522509]
[1688379686900,5.09825,1961.5,1961.0,15.74522509]
[1688379688303,7.65703816,1961.5,1961.0,15.74522509]
[1688379689456,7.65703816,1961.5,1961.0,14.42972]
[1688379694053,12.75528816,1961.5,1961.0,14.42972]
[1688379696772,15.30434816,1961.5,1961.0,14.42972]
[1688379699382,16.83744816,1961.5,1961.0,14.42972]
[1688379700370,16.83744816,1961.5,1961.1,0.88631272]
[1688379700594,16.83744816,1961.5,1961.1,5.98528272]
[1688379700830,16.83744816,1961.5,1961.1,5.09897]
[1688379706643,14.28838816,1961.5,1961.1,10.19814]
[1688379707045,12.75528816,1961.5,1961.1,10.19814]
[1688379712829,12.75528816,1961.5,1961.1,10.61373901]
[1688379713555,15.30434816,1961.5,1961.1,10.61373901]
[1688379718924,12.75528816,1961.5,1961.1,10.61373901]
[1688379721768,15.30434816,1961.5,1961.1,10.61373901]
[1688379724061,15.30434816,1961.5,1961.1,5.51456901]
[1688379726170,2.55878816,1961.4,1961.1,0.41559901]
[1688379726344,10.1973,1961.3,1961.1,0.41559901]
[1688379726528,10.1973,1961.3,1960.9,12.65474775]
[1688379726529,12.75608816,1961.3,1960.9,12.47204775]
[1688379726732,12.75608816,1961.3,1961.0,0.8863632]
[1688379727454,12.75608816,1961.3,1961.0,5.9857032]
[1688379727644,12.75608816,1961.3,1961.0,5.09934]
[1688379728865,7.92378816,1961.1,1961.0,5.09934]
[1688379729073,7.92378816,1961.1,1960.9,0.40709014]
[1688379729074,8.40378816,1961.1,1960.9,0.40709014]
[1688379729374,7.92378816,1961.0,1960.4,0.53586775]
[1688379729690,7.92378816,1961.0,1960.2,2.48986775]
[1688379729691,12.74995,1960.8,1960.2,2.48986775]
[1688379729896,12.74995,1960.8,1960.3,0.88664754]
[1688379729897,2.55878816,1960.7,1960.3,0.88664754]
[1688379730193,2.55878816,1960.7,1960.2,0.53586775]
[1688379730194,12.75132,1960.6,1960.2,0.53586775]
[1688379730481,12.75132,1960.6,1960.2,8.21831177]
[1688379730647,12.75132,1960.6,1960.3,0.88665402]
[1688379730982,12.75132,1960.6,1960.2,7.20867526]
[1688379731274,17.86036816,1960.6,1960.2,2.10717526]
[1688379731471,17.86036816,1960.6,1960.2,0.41287526]
[1688379731833,17.86036816,1960.6,1960.1,6.89711]
[1688379732776,17.86036816,1960.6,1960.1,12.41009405]
[1688379733075,17.86036816,1960.6,1960.1,13.68415313]
[1688379734557,17.86036816,1960.6,1960.1,8.58237313]
[1688379735156,15.31010816,1960.6,1960.1,13.68415313]
[1688379735377,15.31010816,1960.6,1960.1,14.98815313]
[1688379735572,15.31010816,1960.6,1960.1,9.88637313]
[1688379735766,15.31010816,1960.6,1960.1,8.58237313]
[1688379735969,15.31010816,1960.6,1960.1,13.68415313]
[1688379736177,15.31010816,1960.6,1960.1,8.58237313]
[1688379736387,15.31010816,1960.6,1960.1,13.68415313]
[1688379736688,15.31010816,1960.6,1960.1,8.58237313]
[1688379737086,15.31010816,1960.6,1960.1,13.68415313]
[1688379739052,15.31010816,1960.6,1960.1,8.58237313]
[1688379742121,15.31010816,1960.6,1960.1,13.68415313]
[1688379743492,15.31010816,1960.6,1960.1,9.88237313]
[1688379743691,15.31010816,1960.6,1960.1,14.98415313]
[1688379748474,15.31010816,1960.6,1960.1,9.88237313]
[1688379748980,15.31010816,1960.6,1960.1,14.98415313]
[1688379749685,15.31010816,1960.6,1960.1,9.88237313]
[1688379749886,15.31010816,1960.6,1960.1,14.98415313]
[1688379752978,15.31010816,1960.6,1960.1,9.88237313]
[1688379753291,15.31010816,1960.6,1960.1,8.58237313]
[1688379753490,15.31010816,1960.6,1960.1,7.30831405]
[1688379754079,15.31010816,1960.6,1960.1,12.41009405]
[1688379755114,15.31010816,1960.6,1960.1,7.30831405]
[1688379755412,15.31010816,1960.6,1960.1,8.60031405]
[1688379755910,15.31010816,1960.6,1960.1,13.70209405]
[1688379765004,15.31010816,1960.6,1960.1,8.60031405]
[1688379765524,15.31010816,1960.6,1960.1,13.70209405]
[1688379767498,2.55878816,1960.5,1960.1,8.60031405]
[1688379767698,10.20204,1960.4,1960.1,8.60031405]
[1688379769199,12.76082816,1960.4,1960.1,3.49860405]
[1688379769539,12.76082816,1960.4,1960.1,0.41120405]
[1688379769839,12.76082816,1960.4,1960.0,15.36289459]
[1688379769993,12.76082816,1960.4,1960.1,5.10177]
[1688379771404,12.76082816,1960.4,1960.1,10.20355]
[1688379772740,7.65977816,1960.4,1960.1,10.20355]
[1688379774930,7.65977816,1960.4,1960.2,5.98815101]
[1688379775105,7.65977816,1960.4,1960.3,0.88672101]
[1688379775303,7.65977816,1960.4,1960.2,5.10143]
[1688379775931,7.65977816,1960.4,1960.3,0.88671875]
[1688379776843,2.55878816,1960.4,1960.3,0.88671875]
[1688379777144,2.55878816,1960.4,1960.2,5.10143]
[1688379778433,2.55878816,1960.4,1960.2,10.20295]
[1688379780521,2.55878816,1960.4,1960.2,12.75371]
[1688379781247,2.55878816,1960.4,1960.3,0.88669564]
[1688379781423,2.55878816,1960.4,1960.3,11.08921564]
[1688379781917,2.55878816,1960.4,1960.3,5.98795564]
[1688379782326,2.55878816,1960.4,1960.3,5.10126]
[1688379788923,2.55878816,1960.4,1960.3,10.20252]
[1688379790766,30.56,1960.8,1960.3,14.95548374]
[1688379790964,6.304,1961.4,1960.4,0.8866905]
[1688379790965,30.56,1961.1,1960.4,0.8866905]
[1688379791127,0.5,1961.4,1960.6,12.75112]
[1688379791128,2.55878816,1961.0,1960.6,12.75112]
[1688379792460,2.55878816,1961.0,1960.6,10.2009]
[1688379793446,2.55878816,1961.0,1960.6,12.75113]
[1688379795360,7.65824816,1961.0,1960.6,12.75113]
[1688379795929,7.65824816,1961.0,1960.6,10.2009]
[1688379796271,2.55878816,1961.0,1960.6,10.2009]
[1688379796457,2.55878816,1961.0,1960.6,11.476025]
[1688379799534,2.55878816,1961.0,1960.6,15.803255]
[1688379799746,1.98372336,1961.2,1960.6,15.803255]
[1688379799945,2.55878816,1961.1,1960.6,17.791355]
[1688379800784,1.55878816,1961.1,1960.6,17.791355]
[1688379800986,1.55878816,1961.1,1960.7,1.7791355]
[1688379801138,1.55878816,1961.1,1960.8,10.1998]
[1688379802034,1.55878816,1961.1,1960.8,5.0999]
[1688379804741,6.65799816,1961.1,1960.8,5.0999]
[1688379807968,11.75720816,1961.1,1960.8,5.0999]
[1688379809048,11.75720816,1961.1,1960.8,10.19985]
[1688379809353,6.65799816,1961.1,1960.8,10.19985]
[1688379811082,78.47,1961.4,1960.9,1.299]
[1688379811292,2.55878816,1961.3,1961.0,10.19876]
[1688379811838,5.09819,1961.5,1961.0,10.19876]
[1688379812039,12.75593816,1961.4,1961.0,14.39607]
[1688379821803,12.75593816,1961.4,1961.0,14.81058077]
[1688379822130,12.75593816,1961.4,1961.0,17.02683985]
[1688379822689,12.75593816,1961.4,1961.0,16.99877745]
[1688379827728,12.75593816,1961.4,1961.0,14.44906745]
[1688379827916,12.75593816,1961.4,1961.0,12.23280837]
[1688379828114,12.75593816,1961.4,1961.0,0.41451077]
[1688379828317,14.05393816,1961.4,1961.0,10.61337077]
[1688379828634,14.05393816,1961.4,1960.9,6.90171]
[1688379828827,18.20782816,1961.4,1961.0,3.0]
[1688379828985,18.20782816,1961.4,1961.0,8.09934]
[1688379829192,18.20782816,1961.4,1961.0,3.0]
[1688379830996,18.20782816,1961.4,1961.0,8.09941]
[1688379831308,18.20782816,1961.4,1960.9,12.41866598]
[1688379831507,16.90982816,1961.4,1960.9,12.41866598]
[1688379831710,16.90982816,1961.4,1960.9,7.31910598]
[1688379832430,16.90982816,1961.4,1960.9,7.31914598]
[1688379832827,16.90982816,1961.4,1960.9,5.51694598]
[1688379833034,16.90982816,1961.4,1960.9,0.41740598]
[1688379833226,16.90982816,1961.4,1960.9,5.51697598]
[1688379833430,16.90982816,1961.4,1960.8,6.87428227]
[1688379833978,16.90982816,1961.4,1960.8,11.97423227]
[1688379835915,18.21382816,1961.4,1960.8,11.97423227]
[1688379837128,10.56604816,1961.4,1960.8,11.97423227]
[1688379837855,10.56604816,1961.4,1960.8,12.38694145]
[1688379839553,10.56604816,1961.4,1960.8,14.93691145]
[1688379841914,10.56604816,1961.4,1960.8,12.38694145]
[1688379844050,15.66456816,1961.4,1960.8,12.38694145]
[1688379845568,18.21375816,1961.4,1960.8,12.38694145]
[1688379848543,1.298,1961.3,1960.8,0.41270918]
[1688379848843,1.298,1961.3,1960.4,5.97597809]
[1688379848844,14.06083816,1961.2,1960.4,1.82786775]
[1688379849032,17.48473816,1961.2,1960.7,5.10004]
[1688379849223,20.03418816,1961.2,1960.6,11.87871]
[1688379849423,20.03418816,1961.2,1960.6,6.77834]
[1688379849852,20.03418816,1961.2,1960.6,1.678]
[1688379850064,20.03418816,1961.2,1960.6,6.77841]
[1688379850272,20.03418816,1961.2,1960.6,11.87888]
[1688379850471,20.03418816,1961.2,1960.6,6.77841]
[1688379850772,20.03418816,1961.2,1960.6,11.87888]
[1688379851866,20.03418816,1961.2,1960.6,6.77841]
[1688379853400,1.303,1961.1,1960.6,1.678]
[1688379853536,15.30767816,1961.0,1960.6,1.678]
[1688379854633,15.30767816,1961.0,1960.6,1.67527846]
[1688379855549,15.30767816,1961.0,1960.5,10.20126]
[1688379856933,7.65834816,1961.0,1960.5,10.20126]
[1688379857232,4.15398816,1961.0,1960.5,10.20126]
[1688379857848,9.25350816,1961.0,1960.5,10.20126]
[1688379859433,9.25350816,1961.0,1960.5,11.94786]
[1688379859878,14.35302816,1961.0,1960.5,11.94786]
[1688379860695,14.35302816,1961.0,1960.5,14.49822]
[1688379865168,14.35302816,1961.0,1960.5,11.94786]
[1688379865954,9.25350816,1961.0,1960.5,11.94786]
[1688379866376,14.35293816,1961.0,1960.5,11.94786]
[1688379866759,14.35284816,1961.0,1960.5,11.94786]
[1688379866972,14.35284816,1961.0,1960.5,1.7466]
[1688379869056,16.90255816,1961.0,1960.5,1.7466]
[1688379869669,0.01652336,1960.9,1960.5,1.7466]
[1688379869878,7.65874816,1960.8,1960.5,1.7466]
[1688379870705,7.65874816,1960.8,1960.5,6.84733]
[1688379872307,12.75870816,1960.8,1960.5,6.84733]
[1688379875267,15.30867816,1960.8,1960.5,6.84733]
[1688379875897,15.30867816,1960.8,1960.5,1.7466]
[1688379886326,15.30867816,1960.8,1960.4,0.40184441]
[1688379886327,5.365,1960.5,1960.4,0.40184441]
[1688379886510,5.365,1960.5,1960.0,0.12907459]
[1688379886511,8.40378816,1960.5,1960.0,0.12907459]
[1688379886718,8.40378816,1960.5,1959.9,1.8183]
[1688379886719,8.40378816,1960.4,1959.9,6.92037]
[1688379887037,12.75341,1960.3,1959.9,6.92037]
[1688379887209,5.10178,1960.1,1959.9,1.8183]
[1688379887415,5.10178,1960.1,1959.9,0.1]
[1688379887416,7.66056816,1960.1,1959.9,0.1]
[1688379887635,7.66056816,1960.1,1959.9,5.20228]
[1688379888111,12.76234816,1960.1,1959.9,5.20228]
[1688379888713,12.76234816,1960.1,1959.9,0.1]
[1688379889332,12.76234816,1960.1,1959.9,0.51435185]
[1688379889531,12.76234816,1960.1,1959.9,0.1]
[1688379889926,10.20356,1960.1,1959.9,0.1]
[1688379890134,12.76286816,1960.0,1959.9,0.1]
[1688379909302,7.66082816,1960.0,1959.9,0.1]
[1688379909456,12.76286816,1960.0,1959.9,0.1]
[1688379910170,7.66082816,1960.0,1959.9,0.1]
[1688379911298,12.76286816,1960.0,1959.9,0.1]
[1688379912105,7.66082816,1960.0,1959.9,0.1]
[1688379915897,4.52420336,1960.3,1959.9,0.1]
[1688379916105,7.66039816,1960.2,1959.9,11.6086]
[1688379916272,5.10184,1960.1,1959.9,11.6086]
[1688379916467,7.66062816,1960.1,1959.9,11.6086]
[1688379917501,7.66062816,1960.1,1959.9,6.5063]
[1688379917796,12.76246816,1960.1,1959.9,6.5063]
[1688379918709,12.76246816,1960.1,1959.9,1.404]
[1688379918932,12.76246816,1960.1,1959.9,0.1]
[1688379919931,2.55878816,1960.0,1959.9,0.1]
[1688379920233,12.76286816,1960.0,1959.9,0.1]
[1688379926491,15.31388816,1960.0,1959.9,0.1]
[1688379932481,21.15888816,1960.0,1959.9,0.10396195]
[1688379936145,20.67888816,1960.0,1959.9,0.10396195]
[1688379936338,21.15888816,1960.0,1959.9,0.10396195]
[1688379943935,7.66082816,1960.0,1959.9,0.10396195]
[1688379944305,12.76286816,1960.0,1959.9,0.10396195]
[1688379945219,7.66082816,1960.0,1959.9,0.10396195]
[1688379946436,7.66082816,1960.0,1959.9,1.40796195]
[1688379946856,47.91,1960.3,1959.9,12.26361114]
[1688379947057,50.46878816,1960.3,1960.0,1.299]
[1688379947222,60.67149816,1960.3,1960.0,6.40563601]
[1688379947678,47.91,1960.3,1960.1,0.6405636]
[1688379947976,47.91,1960.3,1960.2,11.50104]
[1688379949080,47.91,1960.3,1960.2,6.39952]
[1688379949677,53.01126,1960.3,1960.2,1.298]
[1688379949875,53.01126,1960.3,1960.1,6.39965]
[1688379951240,53.01126,1960.3,1960.2,0.00475507]
[1688379952167,47.91,1960.3,1960.2,0.00475507]
[1688379952374,47.91,1960.3,1960.1,6.39965]
[1688379953360,47.91,1960.3,1960.2,0.00475507]
[1688379954386,47.91,1960.3,1960.1,11.50132]
[1688379955394,47.91,1960.3,1960.2,0.00475507]
[1688379956286,47.91,1960.3,1960.1,11.50132]
[1688379957369,47.91,1960.3,1960.2,0.00475507]
[1688379958396,47.91,1960.3,1960.1,1.298]
[1688379959061,47.91,1960.3,1960.1,1.70180371]
[1688379959272,47.91,1960.3,1960.2,0.00475507]
[1688379960101,53.01126,1960.3,1960.2,0.00475507]
[1688379960342,53.01126,1960.3,1960.1,1.70180371]
[1688379961226,53.01126,1960.3,1960.1,0.40380371]
[1688379961419,53.01126,1960.3,1960.2,0.00475507]
[1688379962340,53.01126,1960.3,1960.0,11.92113705]
[1688379963329,53.01126,1960.3,1960.1,0.00477054]
[1688379964788,53.01126,1960.3,1960.1,5.10652054]
[1688379964992,53.01126,1960.3,1960.1,0.00477054]
[1688379966008,60.67130816,1960.3,1960.1,0.00477054]
[1688379975548,60.67130816,1960.3,1959.9,13.4407]
[1688379976137,2.55878816,1960.2,1959.9,12.1367]
[1688379976331,7.66046816,1960.2,1960.0,0.00478601]
[1688379976720,12.76214816,1960.2,1960.0,5.10679601]
[1688379978747,12.76214816,1960.2,1960.0,0.00478601]
[1688379978985,15.31290816,1960.2,1960.0,0.00478601]
[1688379979445,15.31290816,1960.2,1959.9,0.1]
[1688379979946,15.32943152,1960.2,1959.9,0.1]
[1688379984879,7.92378816,1960.0,1959.9,0.1]
[1688379985041,9.69478816,1960.0,1959.9,0.1]
[1688379985363,30.10294816,1960.0,1959.9,0.1]
[1688379985951,28.81194816,1960.0,1959.9,0.1]
[1688379986661,76.72194816,1960.0,1959.9,0.1]
[1688379988665,76.73847152,1960.0,1959.9,0.1]
[1688379992987,78.04147152,1960.0,1959.9,0.1]
[1688379996887,72.93943152,1960.0,1959.9,0.1]
[1688379997895,71.63643152,1960.0,1959.9,0.1]
[1688379999071,69.08541152,1960.0,1959.9,0.1]
[1688380003884,70.38941152,1960.0,1959.9,0.1]
[1688380007784,69.08541152,1960.0,1959.9,0.1]
[1688380013625,70.38341152,1960.0,1959.9,0.1]
[1688380014009,69.08541152,1960.0,1959.9,0.1]
[1688380015482,63.24041152,1960.0,1959.9,0.1]
[1688380015687,2.55878816,1960.0,1959.9,6.5003]
[1688380015890,7.91573,1960.3,1959.9,7.15033]
[1688380015891,5.10136,1960.3,1959.9,7.15033]
[1688380016127,5.10127,1960.3,1959.9,10.95463]
[1688380016418,10.20226,1960.4,1959.9,10.95463]
[1688380016626,10.20226,1960.4,1960.1,1.3]
[1688380017020,12.75275,1960.4,1960.1,1.3]
[1688380020126,5.10152,1960.2,1960.1,1.3]
[1688380026410,18.12682816,1960.2,1959.9,1.7691]
[1688380026620,3.03878816,1960.1,1959.9,0.1]
[1688380026829,12.7551,1960.0,1959.9,0.1]
[1688380026996,15.79388816,1960.0,1959.9,0.1]
[1688380038372,21.15888816,1960.0,1959.9,0.1]
[1688380042822,21.69218403,1960.0,1959.9,0.1]
[1688380064039,26.75118403,1960.0,1959.9,0.1]
[1688380064191,27.01892374,1960.0,1959.9,0.1]
[1688380067442,28.32292374,1960.0,1959.6,5.961808]
[1688380067644,7.92378816,1959.7,1959.6,4.231008]
[1688380067800,23.23224816,1959.7,1959.6,4.231008]
[1688380068000,23.71224816,1959.7,1959.6,4.231008]
[1688380068945,24.73420616,1959.7,1959.6,4.231008]
[1688380080455,25.67306666,1959.7,1959.6,4.231008]
[1688380092105,24.65110866,1959.7,1959.6,5.531008]
[1688380092276,22.09969866,1959.7,1959.6,4.231008]
[1688380092482,21.60086096,1959.7,1959.6,3.21237731]
[1688380092694,21.19535083,1959.7,1959.6,3.21237731]
[1688380103890,15.83035083,1959.7,1959.6,4.51237731]
[1688380104105,13.27894083,1959.7,1959.6,4.51237731]
[1688380104283,15.83035083,1959.7,1959.6,4.51237731]
[1688380104485,15.31583816,1959.7,1959.6,4.51237731]
[1688380104897,15.34316251,1959.7,1959.6,4.51237731]
[1688380107096,15.31583816,1959.7,1959.6,4.51237731]
[1688380112604,15.34190152,1959.7,1959.6,4.51237731]
[1688380112811,15.31583816,1959.7,1959.6,4.51237731]
[1688380115597,15.34241931,1959.7,1959.6,4.51237731]
[1688380116333,15.31583816,1959.7,1959.6,4.51237731]
[1688380116850,15.34306057,1959.7,1959.6,4.51237731]
[1688380118244,15.31583816,1959.7,1959.6,4.51237731]
[1688380118835,15.34273866,1959.7,1959.6,4.51237731]
[1688380125256,15.31583816,1959.7,1959.6,4.51237731]
[1688380129421,15.34340519,1959.7,1959.6,4.51237731]
[1688380130644,15.31583816,1959.7,1959.6,4.51237731]
[1688380131292,15.34288193,1959.7,1959.6,4.51237731]
[1688380133264,15.31583816,1959.7,1959.6,4.51237731]
[1688380133465,15.34257593,1959.7,1959.6,4.51237731]
[1688380134061,15.31583816,1959.7,1959.6,3.21237731]
[1688380134686,15.3423799,1959.7,1959.6,3.21237731]
[1688380135302,15.31583816,1959.7,1959.6,3.21237731]
[1688380137763,15.34248597,1959.7,1959.6,3.21237731]
[1688380137994,15.31583816,1959.7,1959.6,3.21237731]
[1688380141480,15.31583816,1959.7,1959.6,3.20889641]
[1688380142522,15.34368909,1959.7,1959.6,3.20889641]
[1688380142895,15.31583816,1959.7,1959.6,3.20889641]
[1688380143523,15.34390771,1959.7,1959.6,3.20889641]
[1688380144679,21.18890771,1959.7,1959.6,3.20889641]
[1688380144880,21.16083816,1959.7,1959.6,3.20889641]
[1688380145087,21.188519,1959.7,1959.6,3.20889641]
[1688380146522,70.92287049,1959.7,1959.6,3.20889641]
[1688380146735,73.92287049,1959.7,1959.6,3.20889641]
[1688380146878,72.63187049,1959.7,1959.6,3.20889641]
[1688380149047,5.365,1959.5,1959.3,0.1]
[1688380149246,30.81818816,1959.4,1959.3,0.1]
[1688380149402,28.81818816,1959.4,1959.3,0.1]
[1688380149839,30.81818816,1959.4,1959.3,0.1]
[1688380150540,28.81818816,1959.4,1959.3,0.1]
[1688380150699,30.81818816,1959.4,1959.3,0.1]
[1688380153033,28.81818816,1959.4,1959.3,0.1]
[1688380153342,30.81818816,1959.4,1959.3,0.1]
[1688380153644,33.81818816,1959.4,1959.3,0.1]
[1688380159543,23.34958816,1959.4,1959.3,0.1]
[1688380159714,18.79778816,1959.4,1959.3,0.1]
[1688380160135,20.79778816,1959.4,1959.3,0.1]
[1688380160750,15.31778816,1959.4,1959.3,0.1]
[1688380161122,12.76598816,1959.4,1959.3,0.1]
[1688380161363,5.1036,1959.4,1959.3,0.1]
[1688380163142,10.2072,1959.4,1959.3,0.1]
[1688380164056,5.1036,1959.4,1959.3,0.1]
[1688380170070,10.2071,1959.5,1959.3,0.1]
[1688380170269,12.76588816,1959.5,1959.3,0.1]
[1688380171767,7.66232816,1959.5,1959.3,0.1]
[1688380172003,7.65477,1959.6,1959.3,10.3076]
[1688380172004,5.10325,1959.6,1959.3,10.3076]
[1688380172273,53.01283,1959.7,1959.5,1.304]
[1688380172567,47.91,1959.7,1959.6,1.292]
[1688380174979,5.10244,1959.9,1959.6,2.596]
[1688380175305,5.10219,1960.0,1959.8,1.301]
[1688380175306,5.10218,1960.0,1959.8,1.301]
[1688380175472,5.1023,1959.9,1959.7,0.2596]
[1688380175909,5.1023,1959.9,1959.8,1.3]
[1688380180579,5.10216,1960.0,1959.8,1.3]
[1688380180780,5.10216,1960.0,1959.8,1.966231]
[1688380181395,5.10216,1960.0,1959.7,5.328541]
[1688380181608,5.10216,1960.0,1959.8,1.3]
[1688380185523,10.20428,1960.0,1959.8,1.3]
[1688380187105,10.20428,1960.0,1959.8,1.9628541]
[1688380189652,5.10194,1960.1,1959.8,12.1678241]
[1688380189799,10.20391,1960.1,1959.9,1.3]
[1688380190144,10.20391,1960.1,1959.9,6.40228]
[1688380190695,10.20391,1960.1,1959.9,1.3]
[1688380192250,12.7548,1960.1,1959.9,1.3]
[1688380193347,12.7548,1960.1,1959.8,3.056]
[1688380193528,12.7548,1960.1,1959.8,1.3]
[1688380193529,15.31358816,1960.1,1959.8,1.3]
[1688380193733,15.31358816,1960.1,1959.7,1.292]
[1688380194950,15.31358816,1960.1,1959.8,1.304]
[1688380195163,16.83178816,1960.1,1959.7,1.299]
[1688380195451,16.83178816,1960.1,1959.7,6.40181]
[1688380195452,14.28089816,1960.1,1959.7,6.40181]
[1688380195656,53.01174,1960.2,1960.0,1.304]
[1688380195818,55.57052816,1960.2,1959.7,4.21721]
[1688380196001,55.57052816,1960.2,1959.9,1.292]
[1688380196446,60.67226816,1960.2,1959.9,1.292]
[1688380196920,60.67226816,1960.2,1959.9,6.39426]
[1688380198497,60.67226816,1960.2,1959.9,5.10226]
[1688380198660,60.67226816,1960.2,1959.8,11.930511]
[1688380199651,63.22302816,1960.2,1959.8,11.930511]
[1688380200106,60.67226816,1960.2,1959.8,11.930511]
[1688380200412,58.11348,1960.2,1959.9,1.1930511]
[1688380200561,53.01152,1960.2,1960.0,6.40197]
[1688380200756,58.11304,1960.2,1960.0,6.40197]
[1688380201205,58.11304,1960.2,1960.0,1.3]
[1688380201571,53.01152,1960.2,1960.0,1.3]
[1688380201778,58.11304,1960.2,1960.0,1.3]